bitfinex-derivatives/quotes_BTCF0:USTF0_20240830
["timestamp","ask_amount","ask_price","bid_price","bid_amount"]
[1725031977653,0.3608,58071.0,58061.0,0.2185]
[1725031977853,0.446903,58073.0,58047.0,0.0086]
[1725031977854,0.3608,58066.0,58055.0,0.086129]
[1725031978052,0.04974942,58059.0,58057.0,0.086126]
[1725031978361,0.0002583,58064.0,58054.0,0.3608]
[1725031978655,0.0497534,58061.0,58060.0,0.446922]
[1725031978845,0.0002583,58064.0,58061.0,0.08612]
[1725031979044,0.0002583,58064.0,58063.0,0.3]
[1725031979247,0.05001024,58064.0,58063.0,0.386117]
[1725031979448,0.0002583,58064.0,58063.0,0.386117]
[1725031979653,0.0002583,58064.0,58063.0,0.602797]
[1725031980151,0.0002583,58064.0,58063.0,1.863597]
[1725031980347,0.001,58066.0,58065.0,0.086114]
[1725031980546,0.086113,58066.0,58063.0,0.36184]
[1725031980750,0.008,58064.0,58063.0,0.3618]
[1725031981146,0.3608,58072.0,58053.0,0.747972]
[1725031981147,0.086123,58059.0,58053.0,0.747972]
[1725031981456,0.086131,58054.0,58053.0,0.3608]
[1725031981644,0.086124,58059.0,58053.0,0.3608]
[1725031981842,0.0002579,58062.0,58053.0,0.3608]
[1725031982039,0.086126,58057.0,58054.0,0.08613]
[1725031982356,0.0002579,58062.0,58050.0,0.0002583]
[1725031982357,0.0002579,58062.0,58061.0,0.08612]
[1725031982544,0.0002579,58062.0,58061.0,1.8636]
[1725031982745,0.04980119,58064.0,58061.0,1.94972]
[1725031982955,0.04980119,58069.0,58061.0,0.6608]
[1725031983152,0.04980119,58069.0,58068.0,0.44691]
[1725031983153,0.04979854,58069.0,58068.0,0.44691]
[1725031983356,0.04979261,58070.0,58069.0,0.086108]
[1725031983557,0.04979261,58075.0,58074.0,0.086101]
[1725031983855,0.04979261,58078.0,58077.0,0.086096]
[1725031984058,0.08292957,58089.0,58078.0,0.086095]
[1725031984255,0.0497885,58080.0,58079.0,0.086093]
[1725031984460,5e-07,58081.0,58079.0,0.3608]
[1725031984649,5e-07,58091.0,58090.0,0.086077]
[1725031984848,0.086043,58114.0,58090.0,0.086077]
[1725031984849,0.08292957,58108.0,58090.0,1.0216]
[1725031985155,0.0086,58124.0,58090.0,1.0216]
[1725031985156,0.08292957,58109.0,58108.0,0.08605]
[1725031985355,0.08292957,58121.0,58111.0,0.086045]
[1725031985655,0.086027,58124.0,58119.0,0.3608]
[1725031985862,0.08292957,58126.0,58119.0,0.3608]
[1725031986043,0.08292957,58127.0,58122.0,0.3608]
[1725031986366,1.1128,58140.0,58116.0,0.00025808]
[1725031986367,0.08602,58129.0,58126.0,0.3608]
[1725031986552,0.08292957,58137.0,58127.0,0.086022]
[1725031986756,0.08292957,58139.0,58127.0,0.086022]
[1725031987057,0.086007,58138.0,58131.0,0.3608]
[1725031987244,0.3608,58136.0,58126.0,0.00025808]
[1725031987558,0.008,58127.0,58126.0,0.00025808]
[1725031987856,0.008,58127.0,58122.0,0.001]
[1725031987857,0.086028,58123.0,58122.0,0.001]
[1725031988048,0.086028,58123.0,58103.0,0.47224]
[1725031988049,0.3,58123.0,58104.0,0.3608]
[1725031988249,0.086048,58110.0,58104.0,0.3608]
[1725031988750,0.086048,58110.0,58109.0,0.3608]
[1725031989944,0.086047,58111.0,58109.0,0.3608]
[1725031990143,0.086047,58111.0,58104.0,0.36105808]
[1725031990144,0.086055,58105.0,58104.0,0.36105808]
[1725031990758,0.086055,58105.0,58104.0,0.00025808]
[1725031991054,0.086083,58087.0,58085.0,0.36094961]
[1725031991253,0.6608,58098.0,58085.0,0.36094961]
[1725031991445,0.086067,58097.0,58091.0,0.3608]
[1725031991646,0.3,58108.0,58091.0,0.3608]
[1725031991647,0.08292957,58108.0,58096.0,0.3608]
[1725031991848,0.3608,58105.0,58093.0,0.3]
[1725031992048,0.086071,58094.0,58093.0,0.00025808]
[1725031992248,0.446871,58094.0,58093.0,0.00025808]
[1725031992551,1.649342,58094.0,58093.0,8e-08]
[1725031992954,0.086071,58094.0,58093.0,8e-08]
[1725031993256,0.3608,58104.0,58093.0,0.87720008]
[1725031993457,0.00925808,58105.0,58102.0,0.3608]
[1725031993645,0.00025808,58105.0,58102.0,0.3608]
[1725031993849,0.086058,58104.0,58102.0,0.3608]
[1725031994764,0.00025808,58105.0,58103.0,0.446857]
[1725031994958,0.00025808,58105.0,58104.0,0.51632]
[1725031995147,0.8989,58107.0,58106.0,0.086053]
[1725031995350,0.086027,58124.0,58106.0,0.6]
[1725031995351,1.2597,58124.0,58106.0,0.6]
[1725031995553,1.5597,58124.0,58111.0,0.3608]
[1725031995760,0.086044,58113.0,58111.0,0.3608]
[1725031995952,0.08292957,58123.0,58115.0,0.086039]
[1725031996257,0.8989,58124.0,58113.0,0.00025808]
[1725031996451,0.3608,58123.0,58113.0,0.00025808]
[1725031996655,0.172084,58114.0,58113.0,0.00025808]
[1725031996862,0.086042,58114.0,58113.0,0.00025808]
[1725031997154,0.16897157,58114.0,58113.0,0.00025808]
[1725031997350,0.086042,58114.0,58113.0,0.00025808]
[1725031997554,0.11394538,58114.0,58113.0,0.00025808]
[1725031997750,0.16892812,58114.0,58113.0,0.00025808]
[1725031997952,0.181084,58114.0,58113.0,0.00125808]
[1725031998161,1.74101012,58114.0,58113.0,8e-08]
[1725031998459,1.77206921,58114.0,58113.0,8e-08]
[1725031998650,2.16593643,58114.0,58113.0,8e-08]
[1725031998857,2.10594534,58114.0,58113.0,8e-08]
[1725031999154,0.77770321,58114.0,58095.0,0.36050917]
[1725031999356,0.08294428,58105.0,58100.0,0.3608]
[1725031999558,0.08294428,58110.0,58100.0,0.3608]
[1725031999754,0.01,58114.0,58113.0,0.001]
[1725031999954,0.086061,58101.0,58100.0,0.3608]
[1725032000957,0.00025808,58106.0,58095.0,0.00025808]
[1725032000958,0.086068,58096.0,58095.0,0.00025808]
[1725032001547,0.09605207,58106.0,58095.0,0.00025808]
[1725032001548,0.086062,58101.0,58095.0,0.00025808]
[1725032001747,0.011,58101.0,58100.0,0.447862]
[1725032002154,0.011,58101.0,58100.0,0.964222]
[1725032003466,0.00025808,58106.0,58100.0,0.3608]
[1725032003658,0.00025808,58106.0,58105.0,0.3608]
[1725032003956,0.08631108,58106.0,58105.0,0.3608]
[1725032004166,0.00025808,58106.0,58105.0,0.3608]
[1725032004349,0.17236408,58106.0,58105.0,0.3608]
[1725032004549,0.17236408,58106.0,58100.0,0.3618]
[1725032004550,0.086061,58101.0,58100.0,0.3618]
[1725032004753,0.172122,58101.0,58100.0,0.3618]
[1725032004951,0.172122,58101.0,58100.0,0.001]
[1725032004952,1.288482,58101.0,58100.0,0.001]
[1725032005253,0.086061,58101.0,58100.0,0.001]
[1725032005465,0.172122,58101.0,58100.0,0.001]
[1725032005762,0.086061,58101.0,58100.0,0.001]
[1725032006463,0.086068,58096.0,58095.0,0.00025808]
[1725032006652,0.08301481,58103.0,58095.0,0.00025808]
[1725032006859,0.086057,58104.0,58101.0,0.3608]
[1725032007155,0.086059,58103.0,58102.0,0.086059]
[1725032007465,0.00025808,58106.0,58105.0,0.086055]
[1725032007659,0.00025808,58106.0,58105.0,0.386055]
[1725032008262,0.086059,58102.0,58101.0,0.72276]
[1725032008464,0.086062,58101.0,58096.0,0.3608]
[1725032008669,0.086062,58101.0,58100.0,0.086062]
[1725032009260,0.086065,58098.0,58097.0,0.3608]
[1725032010959,0.08316276,58100.0,58097.0,0.3618]
[1725032011356,0.086065,58098.0,58097.0,0.3618]
[1725032011559,0.086065,58098.0,58097.0,0.447867]
[1725032012154,0.086065,58098.0,58097.0,0.3618]
[1725032012360,0.16922776,58098.0,58097.0,0.3618]
[1725032012564,0.11397197,58098.0,58097.0,0.3618]
[1725032013061,2.15673011,58098.0,58097.0,0.001]
[1725032013269,2.17651448,58098.0,58097.0,0.001]
[1725032013478,0.5164,58097.0,58078.0,0.086094]
[1725032013659,1.40196027,58098.0,58080.0,0.086092]
[1725032013660,0.08341979,58081.0,58080.0,0.086092]
[1725032013860,0.3608,58098.0,58084.0,0.086085]
[1725032013861,0.08342213,58085.0,58084.0,0.086085]
[1725032014063,0.10010375,58087.0,58086.0,0.172166]
[1725032014267,0.08342213,58088.0,58085.0,0.3]
[1725032014268,0.08342213,58089.0,58088.0,0.08608]
[1725032014474,0.08342213,58089.0,58088.0,0.44688]
[1725032014678,0.00025808,58094.0,58090.0,0.086077]
[1725032014679,0.08342213,58091.0,58090.0,0.086077]
[1725032014980,0.00025808,58094.0,58091.0,0.086076]
[1725032014981,0.08342213,58092.0,58091.0,0.086076]
[1725032015272,0.00025808,58094.0,58092.0,0.086074]
[1725032015477,0.0279087,58093.0,58092.0,0.086074]
[1725032015775,0.086079,58089.0,58088.0,0.446879]
[1725032015974,0.08341202,58089.0,58088.0,0.3608]
[1725032016281,0.08340866,58089.0,58088.0,0.44688]
[1725032016486,0.08340866,58090.0,58089.0,0.086079]
[1725032016702,0.00025808,58094.0,58088.0,0.3608]
[1725032016703,0.08340866,58091.0,58090.0,0.086077]
[1725032016986,0.08340603,58091.0,58090.0,0.086077]
[1725032017177,0.100074,58093.0,58091.0,0.086075]
[1725032017372,0.014,58089.0,58088.0,0.3608]
[1725032017575,0.014,58089.0,58088.0,0.44688]
[1725032018076,0.014,58089.0,58088.0,1.56332]
[1725032018386,0.014,58089.0,58088.0,0.3608]
[1725032018682,0.21406841,58089.0,58088.0,0.3608]
[1725032018979,0.23332309,58089.0,58088.0,0.3608]
[1725032019182,0.06116509,58089.0,58088.0,0.3608]
[1725032019388,0.02791011,58089.0,58088.0,0.44688]
[1725032019584,0.08343259,58090.0,58088.0,0.3608]
[1725032019784,0.08343259,58090.0,58089.0,0.086079]
[1725032020091,0.02790756,58090.0,58089.0,0.086079]
[1725032020480,0.00025808,58094.0,58090.0,0.086077]
[1725032020481,0.086077,58091.0,58090.0,0.086077]
[1725032020683,0.11398729,58091.0,58090.0,0.086077]
[1725032021785,0.02791029,58091.0,58090.0,0.086077]
[1725032021980,0.02791029,58091.0,58089.0,0.001]
[1725032021981,0.02790876,58093.0,58089.0,0.001]
[1725032022286,0.10039839,58094.0,58093.0,0.086073]
[1725032022583,0.12830682,58094.0,58093.0,0.086073]
[1725032022787,0.02816651,58094.0,58093.0,0.086073]
[1725032022981,0.00025808,58094.0,58093.0,0.172146]
[1725032023182,0.08358948,58094.0,58093.0,0.086073]
[1725032023689,0.086076,58091.0,58090.0,0.001]
[1725032023984,0.086077,58090.0,58084.0,0.086085]
[1725032024183,0.086077,58090.0,58083.0,0.00025808]
[1725032024184,0.086083,58087.0,58080.0,0.62303487]
[1725032024484,0.08333175,58088.0,58086.0,0.086083]
[1725032024690,0.08333175,58087.0,58086.0,0.086083]
[1725032024874,0.08333175,58087.0,58085.0,0.3608]
[1725032024875,0.086083,58086.0,58085.0,0.3608]
[1725032025076,0.11399299,58086.0,58085.0,0.3608]
[1725032025282,0.11399299,58086.0,58085.0,0.446885]
[1725032025985,0.11399299,58086.0,58085.0,0.3608]
[1725032026480,0.11399299,58086.0,58085.0,0.446885]
[1725032026877,0.02790999,58086.0,58085.0,0.446885]
[1725032027083,0.009,58087.0,58085.0,0.3608]
[1725032027391,0.009,58087.0,58086.0,0.086083]
[1725032027586,0.009,58087.0,58086.0,0.774729]
[1725032027884,0.8989,58093.0,58092.0,0.172148]
[1725032028076,0.89915808,58094.0,58093.0,0.086073]
[1725032028277,0.92706361,58094.0,58093.0,0.086073]
[1725032029282,0.92706285,58094.0,58093.0,0.086073]
[1725032029480,0.92706191,58094.0,58093.0,0.086073]
[1725032029680,0.89915808,58094.0,58093.0,0.086073]
[1725032029880,0.92706323,58094.0,58093.0,0.086073]
[1725032030289,0.89915808,58094.0,58093.0,0.602473]
[1725032030692,0.89915808,58094.0,58093.0,1.374619]
[1725032030992,0.00088,58116.0,58115.0,0.08604]
[1725032031183,0.01013842,58120.0,58115.0,1.10764]
[1725032031391,0.086027,58124.0,58115.0,1.0216]
[1725032031586,0.03323541,58123.0,58115.0,0.6608]
[1725032031884,0.03323541,58122.0,58115.0,0.3608]
[1725032032090,0.086039,58116.0,58115.0,0.3608]
[1725032032384,0.11927569,58116.0,58115.0,0.3618]
[1725032032790,0.11589283,58123.0,58115.0,0.3618]
[1725032033094,0.00025808,58125.0,58122.0,0.68664]
[1725032033394,0.00088,58141.0,58122.0,0.68664]
[1725032033395,0.1165857,58143.0,58124.0,0.3608]
[1725032033593,0.1165857,58143.0,58123.0,0.51616]
[1725032033594,0.03322402,58142.0,58138.0,0.3]
[1725032033796,0.1192274,58141.0,58136.0,0.3608]
[1725032034002,0.0332244,58140.0,58136.0,0.3608]
[1725032034493,0.1165857,58144.0,58136.0,0.3608]
[1725032034494,0.08625508,58144.0,58136.0,0.3608]
[1725032034701,0.01300292,58144.0,58136.0,0.3608]
[1725032034995,0.086005,58139.0,58136.0,0.3608]
[1725032035197,0.00025808,58144.0,58138.0,0.6608]
[1725032035592,0.007,58140.0,58138.0,0.3608]
[1725032035794,0.007,58140.0,58139.0,0.6608]
[1725032036007,0.00025808,58144.0,58139.0,0.6608]
[1725032036293,0.00025808,58144.0,58142.0,0.086]
[1725032036497,0.00025808,58144.0,58142.0,0.60196]
[1725032037094,0.00025808,58144.0,58143.0,0.51596]
[1725032037500,0.4859857,58172.0,58154.0,0.085982]
[1725032037501,0.06643374,58157.0,58154.0,0.085982]
[1725032037697,0.06643374,58158.0,58156.0,0.6608]
[1725032037898,0.06643374,58158.0,58156.0,0.746779]
[1725032038093,0.06643374,58160.0,58156.0,0.6608]
[1725032038294,0.06643374,58160.0,58159.0,0.6608]
[1725032038498,0.06643374,58164.0,58159.0,0.6608]
[1725032038695,0.00025808,58165.0,58163.0,0.3608]
[1725032038890,0.01284842,58189.0,58175.0,0.08595]
[1725032039094,0.06624139,58188.0,58186.0,0.7216]
[1725032039400,0.06624139,58195.0,58186.0,0.3608]
[1725032039599,0.06624139,58194.0,58192.0,0.3]
[1725032039796,0.06624139,58194.0,58187.0,0.00025785]
[1725032039797,0.085931,58189.0,58187.0,0.00025785]
[1725032040100,0.06624139,58194.0,58173.0,0.3608]
[1725032040101,0.085934,58187.0,58173.0,0.3608]
[1725032040403,0.085949,58177.0,58176.0,0.3]
[1725032040899,0.085949,58177.0,58173.0,0.3608]
[1725032040900,0.085951,58175.0,58173.0,0.3608]
[1725032041103,0.51568,58176.0,58171.0,0.00025785]
[1725032041302,0.08595,58176.0,58175.0,0.001]
[1725032041700,0.085956,58172.0,58171.0,0.00025785]
[1725032041891,0.085956,58172.0,58156.0,0.3]
[1725032041892,0.08597,58163.0,58162.0,0.3608]
[1725032042301,0.085962,58168.0,58162.0,0.3608]
[1725032042503,0.085964,58167.0,58162.0,0.3608]
[1725032042809,0.81576,58166.0,58160.0,0.3608]
[1725032042998,0.3,58161.0,58150.0,0.3608]
[1725032043306,0.085982,58155.0,58150.0,0.3608]
[1725032043609,0.4518,58160.0,58146.0,0.3]
[1725032043610,0.085983,58154.0,58146.0,0.3]
[1725032043909,0.085987,58152.0,58147.0,0.3608]
[1725032044406,0.00025785,58156.0,58154.0,0.085982]
[1725032044709,0.00025785,58156.0,58154.0,0.446782]
[1725032045099,0.00025785,58156.0,58155.0,0.3]
[1725032045395,0.007,58163.0,58162.0,0.085971]
[1725032045605,0.01247841,58173.0,58162.0,0.3608]
[1725032045808,0.085968,58164.0,58162.0,0.3608]
[1725032046007,0.3,58163.0,58154.0,0.3618]
[1725032046197,0.2157,58163.0,58154.0,0.3608]
[1725032046397,0.092979,58156.0,58155.0,0.001]
[1725032046713,0.08599,58149.0,58148.0,0.3608]
[1725032047600,0.01302144,58155.0,58148.0,0.3608]
[1725032047793,0.3678,58156.0,58148.0,0.3608]
[1725032048000,0.007,58156.0,58155.0,0.3608]
[1725032048212,0.0194606,58156.0,58148.0,0.3608]
[1725032048506,0.60065244,58163.0,58153.0,0.3608]
[1725032048507,0.51468244,58163.0,58153.0,0.3608]
[1725032048807,0.301669,58163.0,58162.0,0.001]
[1725032049006,0.007,58173.0,58162.0,0.001]
[1725032049202,0.01245351,58170.0,58160.0,0.3608]
[1725032049397,0.2307,58172.0,58163.0,0.085969]
[1725032049598,0.085959,58170.0,58163.0,0.085969]
[1725032049800,0.2307,58172.0,58163.0,0.085969]
[1725032050017,0.01262777,58179.0,58163.0,0.085969]
[1725032050308,0.171944,58161.0,58157.0,0.00025785]
[1725032050505,0.385976,58158.0,58157.0,0.00025785]
[1725032050709,0.085976,58158.0,58157.0,0.00025785]
[1725032050898,0.2307,58160.0,58157.0,0.36105785]
[1725032051104,0.085976,58158.0,58157.0,0.36105785]
[1725032051403,0.085976,58158.0,58157.0,0.00025785]
[1725032051607,0.601816,58158.0,58157.0,0.00025785]
[1725032051802,0.085976,58158.0,58157.0,0.36105785]
[1725032052005,0.2307,58160.0,58157.0,0.00025785]
[1725032052302,0.00025785,58164.0,58158.0,0.3]
[1725032052503,0.00025785,58164.0,58163.0,0.3608]
[1725032052504,0.08622585,58164.0,58163.0,0.3608]
[1725032052894,0.00025785,58164.0,58163.0,0.3608]
[1725032053212,0.00025785,58164.0,58163.0,0.446769]
[1725032053703,0.00725785,58164.0,58163.0,0.446769]
[1725032054397,0.00725785,58164.0,58163.0,0.3608]
[1725032054596,0.17195,58159.0,58158.0,0.001]
[1725032054806,0.385975,58159.0,58158.0,0.001]
[1725032055002,0.085975,58159.0,58158.0,0.001]
[1725032055208,0.085982,58154.0,58153.0,0.35950082]
[1725032055905,0.085982,58154.0,58141.0,0.3608]
[1725032055906,1.11588,58154.0,58141.0,0.3608]
[1725032056107,0.085992,58148.0,58141.0,0.3608]
[1725032056300,0.085992,58148.0,58147.0,0.3608]
[1725032056710,0.085992,58148.0,58142.0,0.00017301]
[1725032056711,0.085999,58143.0,58142.0,0.00017301]
[1725032056903,0.37884353,58152.0,58142.0,0.00017301]
[1725032056904,0.07884353,58152.0,58142.0,0.00017301]
[1725032057104,0.085986,58152.0,58151.0,0.3608]
[1725032057409,0.00025785,58153.0,58148.0,0.3608]
[1725032057915,0.08599,58149.0,58148.0,0.3608]
[1725032058411,0.085999,58143.0,58142.0,0.00017301]
[1725032059106,0.086,58142.0,58141.0,0.32433716]
[1725032059904,0.15221631,58142.0,58141.0,0.32433716]
[1725032060109,0.15221631,58142.0,58124.0,0.31260561]
[1725032060110,0.42701631,58142.0,58124.0,0.31260561]
[1725032060299,0.3,58132.0,58123.0,0.3608]
[1725032060501,0.086036,58118.0,58117.0,0.3608]
[1725032060703,0.086036,58118.0,58106.0,0.3608]
[1725032060704,0.086043,58113.0,58112.0,0.3608]
[1725032061103,0.06632157,58115.0,58114.0,0.086042]
[1725032061313,0.0662701,58120.0,58112.0,0.6608]
[1725032061616,0.0662701,58120.0,58118.0,0.3608]
[1725032061809,0.1523041,58119.0,58118.0,0.3608]
[1725032062410,0.086034,58119.0,58118.0,0.3608]
[1725032063012,0.086034,58119.0,58118.0,0.31518792]
[1725032063509,0.008,58120.0,58118.0,0.31518792]
[1725032063510,0.008,58120.0,58119.0,0.086034]
[1725032064515,0.00025809,58123.0,58121.0,0.08603]
[1725032064719,0.086034,58119.0,58118.0,0.31518792]
[1725032064920,0.42709835,58119.0,58112.0,0.3608]
[1725032065221,0.3608,58113.0,58102.0,0.3608]
[1725032065418,0.086064,58099.0,58096.0,0.3608]
[1725032065616,0.086064,58099.0,58095.0,0.086069]
[1725032066118,0.086064,58099.0,58094.0,0.3608]
[1725032066313,0.08631609,58103.0,58097.0,0.3608]
[1725032066515,0.00025809,58103.0,58102.0,0.446859]
[1725032066723,0.00025809,58103.0,58102.0,0.086059]
[1725032066908,0.00025809,58103.0,58097.0,0.086065]
[1725032067113,0.00025809,58103.0,58090.0,0.3608]
[1725032067519,0.00025809,58103.0,58095.0,0.08607]
[1725032067718,0.00025809,58103.0,58100.0,0.3608]
[1725032067923,0.086067,58097.0,58095.0,0.44687]
[1725032068309,0.086068,58096.0,58095.0,0.3608]
[1725032068815,0.086077,58091.0,58077.0,0.3608]
[1725032069028,0.086079,58089.0,58077.0,0.3608]
[1725032069317,0.00025809,58090.0,58084.0,0.086086]
[1725032069318,0.086082,58087.0,58084.0,0.086086]
[1725032069913,0.172165,58087.0,58084.0,0.086086]
[1725032070111,0.086086,58084.0,58083.0,0.3608]
[1725032070309,0.086095,58078.0,58077.0,0.3608]
[1725032070510,0.3,58084.0,58072.0,0.3608]
[1725032070712,0.00025809,58084.0,58078.0,0.3608]
[1725032070912,0.00025809,58084.0,58083.0,0.3608]
[1725032071116,0.00025809,58084.0,58083.0,0.446888]
[1725032071326,0.00025809,58084.0,58083.0,0.807688]
[1725032071916,0.00425809,58084.0,58083.0,0.807688]
[1725032072424,0.00025809,58084.0,58083.0,0.807688]
[1725032072630,0.00925809,58084.0,58083.0,0.807688]
[1725032072822,0.00900024,58084.0,58083.0,0.807688]
[1725032073329,0.00900024,58084.0,58083.0,0.446888]
[1725032073531,0.00900024,58084.0,58079.0,0.446893]
[1725032073828,0.00900024,58084.0,58083.0,0.086088]
[1725032075220,0.08609,58081.0,58079.0,0.3618]
[1725032075424,0.172184,58080.0,58079.0,0.3618]
[1725032075633,0.172184,58080.0,58079.0,0.001]
[1725032075820,0.086122,58060.0,58059.0,0.3608]
[1725032076322,0.386098,58076.0,58059.0,0.3608]
[1725032076523,0.3,58076.0,58064.0,0.086114]
[1725032076937,0.30025836,58076.0,58067.0,0.3608]
[1725032077233,0.3608,58072.0,58059.0,0.3608]
[1725032077432,0.3808,58072.0,58059.0,0.3608]
[1725032077632,0.086117,58064.0,58061.0,0.086119]
[1725032078131,0.085117,58064.0,58061.0,0.086119]
[1725032078323,0.31276126,58076.0,58059.0,0.3608]
[1725032078324,0.66105836,58076.0,58059.0,0.3608]
[1725032078526,0.08612,58061.0,58059.0,0.3608]
[1725032078722,0.001,58064.0,58061.0,0.005]
[1725032079134,0.001,58064.0,58063.0,0.086117]
[1725032079326,0.086104,58072.0,58062.0,0.6608]
[1725032079629,0.086105,58071.0,58062.0,0.66924704]
[1725032079829,0.19922175,58082.0,58070.0,0.3608]
[1725032080147,0.0126019,58082.0,58075.0,0.3608]
[1725032080330,0.086085,58085.0,58077.0,0.3]
[1725032080533,0.00025836,58084.0,58081.0,0.3608]
[1725032080726,0.00025836,58084.0,58083.0,0.086088]
[1725032081225,0.00025836,58084.0,58083.0,0.446888]
[1725032081834,2.7e-07,58084.0,58083.0,1.563368]
[1725032082037,0.01300027,58084.0,58083.0,0.447888]
[1725032082638,2.7e-07,58084.0,58083.0,0.446888]
[1725032082829,0.00500027,58084.0,58083.0,1.049456]
[1725032083024,2.7e-07,58084.0,58083.0,1.949456]
[1725032083224,0.01303751,58102.0,58085.0,0.086084]
[1725032083438,0.086061,58101.0,58089.0,0.3608]
[1725032083638,0.086061,58101.0,58090.0,0.3608]
[1725032083829,0.086061,58101.0,58090.0,0.446877]
[1725032084131,0.086073,58093.0,58090.0,0.44713536]
[1725032084334,0.00025836,58101.0,58090.0,0.36105836]
[1725032084539,0.00025836,58101.0,58100.0,0.446862]
[1725032085139,0.00025836,58101.0,58100.0,1.107662]
[1725032085531,0.00025836,58101.0,58100.0,2.224022]
[1725032085726,3.6e-07,58101.0,58100.0,2.311084]
[1725032086230,3.6e-07,58101.0,58100.0,1.925022]
[1725032086428,3.6e-07,58101.0,58100.0,2.011084]
[1725032086834,0.06623835,58119.0,58118.0,0.086036]
[1725032087043,0.06623835,58121.0,58120.0,0.086033]
[1725032087242,0.08290625,58124.0,58118.0,0.36176]
[1725032087425,0.086038,58117.0,58115.0,0.00025809]
[1725032087629,0.086039,58116.0,58115.0,0.00025809]
[1725032088032,0.16868716,58116.0,58115.0,0.00025809]
[1725032088230,0.11394048,58116.0,58115.0,0.00025809]
[1725032088831,0.12650722,58116.0,58115.0,0.00025809]
[1725032089737,0.21254622,58116.0,58115.0,0.00125809]
[1725032089939,0.21254622,58116.0,58097.0,0.31269024]
[1725032089940,0.086056,58104.0,58103.0,0.3608]
[1725032090133,0.08280261,58106.0,58102.0,0.086058]
[1725032090440,0.08280261,58107.0,58103.0,0.3]
[1725032090738,0.08280261,58109.0,58103.0,0.3]
[1725032090935,0.086046,58111.0,58108.0,0.3608]
[1725032091136,0.02790204,58110.0,58109.0,0.086049]
[1725032091341,0.0279017,58111.0,58109.0,0.3608]
[1725032091637,0.086048,58110.0,58109.0,0.3608]
[1725032091841,0.086048,58110.0,58102.0,0.3608]
[1725032091842,0.086058,58103.0,58102.0,0.3608]
[1725032092136,0.16895566,58103.0,58102.0,0.3608]
[1725032092345,0.29938411,58103.0,58102.0,0.3608]
[1725032092642,0.11396298,58103.0,58102.0,0.3608]
[1725032093139,0.02790498,58103.0,58102.0,0.447859]
[1725032093333,0.1274122,58105.0,58102.0,0.447859]
[1725032093531,0.086058,58103.0,58102.0,0.001]
[1725032093727,0.2995282,58103.0,58102.0,0.001]
[1725032093934,0.11396298,58103.0,58102.0,0.001]
[1725032094738,1.35634098,58103.0,58102.0,0.001]
[1725032095234,0.15396298,58103.0,58102.0,0.001]
[1725032095430,1.35634459,58103.0,58102.0,0.001]
[1725032095645,0.75634459,58103.0,58102.0,0.001]
[1725032095836,0.086064,58099.0,58098.0,0.446865]
[1725032096031,0.11397259,58099.0,58098.0,0.446865]
[1725032096236,0.02790859,58099.0,58098.0,0.446865]
[1725032096441,0.11394823,58103.0,58102.0,0.086059]
[1725032096642,0.04220745,58103.0,58102.0,0.086059]
[1725032096833,0.02790406,58103.0,58102.0,0.386059]
[1725032097140,0.02790366,58105.0,58104.0,0.086056]
[1725032097436,0.02790278,58105.0,58104.0,0.446856]
[1725032097640,0.02790211,58108.0,58104.0,0.3608]
[1725032097839,0.086054,58106.0,58105.0,0.086054]
[1725032098032,0.11395611,58106.0,58105.0,0.086054]
[1725032098432,0.11395611,58106.0,58105.0,0.446854]
[1725032098627,0.11395554,58106.0,58105.0,0.446854]
[1725032098843,0.003,58108.0,58105.0,0.3608]
[1725032099031,0.08305145,58106.0,58105.0,0.3608]
[1725032099234,0.003,58108.0,58107.0,0.172104]
[1725032099432,0.00025809,58112.0,58107.0,0.086052]
[1725032099433,0.08305145,58111.0,58107.0,0.086052]
[1725032099650,0.00025809,58112.0,58111.0,0.086046]
[1725032100036,0.02815826,58112.0,58111.0,0.086046]
[1725032100239,0.086046,58111.0,58110.0,0.3608]
[1725032100438,0.086052,58107.0,58106.0,0.00025809]
[1725032100745,0.086052,58107.0,58088.0,0.3608]
[1725032100746,0.172158,58089.0,58088.0,0.3608]
[1725032100940,0.472158,58089.0,58088.0,0.3608]
[1725032101241,1.588598,58089.0,58088.0,0.3608]
[1725032101433,0.086092,58080.0,58079.0,0.3608]
[1725032102033,0.15256983,58080.0,58079.0,0.3608]
[1725032102232,0.086092,58080.0,58079.0,0.3608]
[1725032102436,0.08309104,58084.0,58079.0,0.3608]
[1725032102639,0.06647373,58082.0,58080.0,0.086092]
[1725032103042,0.06647373,58082.0,58079.0,0.3608]
[1725032103043,0.06647373,58082.0,58081.0,0.08609]
[1725032103241,0.06646588,58082.0,58081.0,0.08609]
[1725032103536,0.00025809,58085.0,58081.0,0.08609]
[1725032103736,0.00025809,58085.0,58084.0,0.3608]
[1725032104038,0.08309104,58091.0,58088.0,0.08608]
[1725032104349,0.06447089,58096.0,58095.0,0.17214]
[1725032104643,0.1165857,58118.0,58100.0,0.172124]
[1725032104644,1.9e-07,58101.0,58100.0,0.172124]
[1725032104945,0.08310273,58109.0,58100.0,0.6608]
[1725032105146,0.3,58129.0,58099.0,0.00025809]
[1725032105147,0.04986244,58104.0,58099.0,0.00025809]
[1725032105334,0.04985535,58104.0,58103.0,0.807658]
[1725032105535,0.04985535,58104.0,58103.0,1.710036]
[1725032105536,3.5e-07,58104.0,58103.0,1.710036]
[1725032105741,0.1165857,58130.0,58111.0,0.3608]
[1725032105944,0.086006,58139.0,58129.0,1.0216]
[1725032106247,0.086,58142.0,58138.0,0.3608]
[1725032106442,0.086,58142.0,58129.0,0.6608]
[1725032106443,0.3,58140.0,58129.0,0.3608]
[1725032106649,0.6,58142.0,58129.0,0.3608]
[1725032106650,0.3,58134.0,58129.0,0.3608]
[1725032106844,0.086017,58131.0,58129.0,0.36105809]
[1725032107055,0.02789411,58130.0,58129.0,0.36105809]
[1725032107346,0.06112696,58130.0,58129.0,0.36105809]